[Event "Hungary Olimpic Hopes 2022"]
[Site "Tapolca"]
[Date "2022.06.23"]
[Round "2.7"]
[White "Toth, Timea"]
[Black "Horvath, Greta"]
[Result "1-0"]
[ECO "C45"]
[WhiteElo "1964"]
[BlackElo "1365"]
[Annotator "NA RC"]
[PlyCount "29"]
[EventDate "2022.06.23"]
[EventType "swiss"]
[EventCountry "HUN"]
[SourceTitle "playchess.com"]
[Source "ChessBase"]
[SourceQuality "1"]
[TimeControl "5400+30"]

1. e4 {[%emt 0:00:02]} e5 {[%emt 0:00:05]} 2. Nf3 {[%emt 0:00:05]} Nc6 {[%emt 0:00:04]} 3. d4 {[%emt 0:00:03]} exd4 {[%emt 0:00:06]} 4. Nxd4 {[%emt 0:00:03]} Bc5 {[%emt 0:00:12]} 5. Be3 {[%emt 0:00:06]} Qf6 {[%emt 0:00:09]} 6. Nb5 {[%emt 0:00:06]} Bxe3 {[%emt 0:00:19]} 7. fxe3 {[%emt 0:00:05]} Qh4+ {[%emt 0:00:20]} 8. g3 {[%emt 0:00:46]} Qxe4 9. Nxc7+ {[%emt 0:35:09]} Kd8 {[%emt 0:00:32]} 10. Nxa8 {[%emt 0:00:05]} Qxh1 {[%emt 0:13:02]} 11. Qg4 Ne5 {[%emt 0:03:39]} 12. Qxg7 {[%emt 0:56:12]} Nf3+ 13. Kf2 Qg1+ {[%emt 0:04:06]} 14. Ke2 {[%emt 0:01:12]} b6 {[%emt 0:02:35]} 15. Qf8# {[%emt 0:00:19]} 1-0

[Event "Hungary Olimpic Hopes 2022"]
[Site "Tapolca"]
[Date "2022.06.23"]
[Round "2.8"]
[White "Lazsadi, Kerka Lilla"]
[Black "Kovacs, Reka"]
[Result "1/2-1/2"]
[ECO "B20"]
[WhiteElo "1755"]
[BlackElo "1685"]
[Annotator "NA RC"]
[PlyCount "69"]
[EventDate "2022.06.23"]
[EventType "swiss"]
[EventCountry "HUN"]
[SourceTitle "playchess.com"]
[Source "ChessBase"]
[SourceQuality "1"]
[TimeControl "5400+30"]

1. e4 {[%emt 0:00:05]} c5 {[%emt 0:00:06]} 2. c4 {[%emt 0:00:06]} Nc6 {[%emt 0:00:18]} 3. Nc3 {[%emt 0:00:07]} Nf6 {[%emt 0:00:41]} 4. g3 {[%emt 0:00:08]} e5 {[%emt 0:02:24]} 5. Bg2 {[%emt 0:00:08]} Be7 {[%emt 0:00:34]} 6. Nge2 {[%emt 0:00:08]} O-O {[%emt 0:02:39]} 7. O-O {[%emt 0:00:13]} d6 {[%emt 0:01:06]} 8. d3 {[%emt 0:00:13]} Be6 {[%emt 0:02:45]} 9. f4 {[%emt 0:04:21]} g6 10. f5 {[%emt 0:10:24]} Bd7 {[%emt 0:11:24]} 11. Bh3 {[%emt 0:02:11]} Kh8 {[%emt 0:03:28]} 12. Kh1 {[%emt 0:10:06]} Rg8 {[%emt 0:03:48]} 13. Ng1 Nd4 {[%emt 0:10:00]} 14. fxg6 {[%emt 0:03:40]} fxg6 {[%emt 0:03:13]} 15. Bg5 {[%emt 0:08:25]} Rf8 {[%emt 0:07:52]} 16. Qd2 {[%emt 0:07:27]} Bxh3 {[%emt 0:07:17]} 17. Nxh3 {[%emt 0:00:18]} Qd7 {[%emt 0:02:37]} 18. Bxf6+ {[%emt 0:03:10]} Bxf6 {[%emt 0:01:33]} 19. Kg2 {[%emt 0:00:55]} Rf7 {[%emt 0:02:50]} 20. Rf2 {[%emt 0:04:34]} Raf8 {[%emt 0:01:24]} 21. Raf1 {[%emt 0:00:36]} Bd8 22. Rxf7 {[%emt 0:13:40]} Rxf7 {[%emt 0:04:26]} 23. Rxf7 {[%emt 0:00:28]} Qxf7 {[%emt 0:00:03]} 24. Qf2 {[%emt 0:00:23]} Qxf2+ {[%emt 0:08:19]} 25. Nxf2 {[%emt 0:00:13]} Bg5 {[%emt 0:02:58]} 26. Nd5 Kg7 27. h4 {[%emt 0:07:58]} Bc1 {[%emt 0:09:33]} 28. b4 {[%emt 0:02:50]} cxb4 {[%emt 0:01:20]} 29. Nxb4 {[%emt 0:00:10]} Ba3 {[%emt 0:00:39]} 30. Nd5 Ne2 {[%emt 0:02:00]} 31. Kf3 {[%emt 0:15:46]} Ng1+ {[%emt 0:00:28]} 32. Kg2 {[%emt 0:00:21]} Ne2 {[%emt 0:00:08]} 33. Kf3 {[%emt 0:00:06]} Ng1+ {[%emt 0:00:28]} 34. Kg2 {[%emt 0:00:11]} Ne2 {[%emt 0:00:15]} 35. Kf3 {[%emt 0:00:09]} 1/2-1/2

[Event "Hungary Olimpic Hopes 2022"]
[Site "Tapolca"]
[Date "2022.06.23"]
[Round "2.9"]
[White "Sass, Oscar"]
[Black "Lehocz, Jozsef Jr."]
[Result "1/2-1/2"]
[ECO "C00"]
[WhiteElo "1439"]
[BlackElo "1963"]
[Annotator "NA RC"]
[PlyCount "120"]
[EventDate "2022.06.23"]
[EventType "swiss"]
[EventCountry "HUN"]
[SourceTitle "playchess.com"]
[Source "ChessBase"]
[SourceQuality "1"]
[TimeControl "5400+30"]

1. e4 {[%emt 0:00:04]} e6 {[%emt 0:00:01]} 2. d4 {[%emt 0:00:07]} b6 {[%emt 0:00:02]} 3. Nf3 {[%emt 0:00:29]} Bb7 {[%emt 0:00:06]} 4. Nc3 {[%emt 0:00:08]} Bb4 {[%emt 0:00:08]} 5. Bd3 {[%emt 0:00:28]} Nf6 {[%emt 0:00:21]} 6. Bg5 {[%emt 0:01:25]} h6 {[%emt 0:00:11]} 7. Bxf6 {[%emt 0:00:07]} Qxf6 {[%emt 0:00:09]} 8. a3 {[%emt 0:00:43]} Bxc3+ {[%emt 0:01:16]} 9. bxc3 {[%emt 0:00:06]} d6 {[%emt 0:03:09]} 10. O-O {[%emt 0:03:17]} Nd7 {[%emt 0:00:31]} 11. Qe2 {[%emt 0:04:07]} O-O 12. Ba6 Bc6 {[%emt 0:13:32]} 13. Bb5 {[%emt 0:08:33]} Bxb5 {[%emt 0:01:43]} 14. Qxb5 {[%emt 0:00:08]} Qe7 {[%emt 0:02:29]} 15. Rfe1 {[%emt 0:05:44]} Rfd8 {[%emt 0:07:03]} 16. Rad1 {[%emt 0:02:19]} a5 {[%emt 0:00:57]} 17. a4 {[%emt 0:05:50]} Rac8 {[%emt 0:14:51]} 18. c4 {[%emt 0:05:36]} Qe8 {[%emt 0:02:06]} 19. Qc6 Nb8 {[%emt 0:00:02]} 20. Qxe8+ {[%emt 0:01:31]} Rxe8 {[%emt 0:00:52]} 21. c3 {[%emt 0:09:04]} Nd7 {[%emt 0:01:46]} 22. g3 {[%emt 0:01:25]} g6 {[%emt 0:00:30]} 23. Nh4 {[%emt 0:02:13]} Red8 {[%emt 0:02:34]} 24. f4 {[%emt 0:01:23]} Kg7 {[%emt 0:01:45]} 25. Nf3 {[%emt 0:04:57]} Re8 {[%emt 0:00:12]} 26. Kg2 {[%emt 0:03:13]} Rcd8 {[%emt 0:06:16]} 27. h3 {[%emt 0:05:29]} e5 {[%emt 0:00:41]} 28. Kf2 {[%emt 0:03:33]} Kf6 {[%emt 0:01:43]} 29. Nh2 {[%emt 0:00:27]} Kg7 {[%emt 0:00:43]} 30. Nf3 {[%emt 0:02:00]} f6 {[%emt 0:01:30]} 31. Nh4 {[%emt 0:00:57]} Re7 {[%emt 0:00:54]} 32. f5 {[%emt 0:00:14]} Nf8 {[%emt 0:00:55]} 33. fxg6 {[%emt 0:06:28]} Re6 34. g4 {[%emt 0:00:08]} Nxg6 {[%emt 0:01:22]} 35. Nxg6 Kxg6 {[%emt 0:00:00]} 36. d5 {[%emt 0:00:43]} Re7 37. Kg3 {[%emt 0:00:28]} Rg8 {[%emt 0:01:14]} 38. Rf1 {[%emt 0:00:03]} Reg7 {[%emt 0:00:35]} 39. Rf5 {[%emt 0:00:00]} Kf7 {[%emt 0:00:18]} 40. Rdf1 {[%emt 0:00:54]} Rg6 {[%emt 0:01:20]} 41. R1f3 {[%emt 0:00:43]} Ke7 {[%emt 0:01:43]} 42. Kf2 {[%emt 0:03:52]} Rc8 {[%emt 0:01:00]} 43. h4 {[%emt 0:01:07]} Rf8 {[%emt 0:02:23]} 44. Kg3 {[%emt 0:02:28]} Rfg8 45. Kh3 {[%emt 0:00:24]} Rxg4 {[%emt 0:10:43]} 46. Rxf6 {[%emt 0:01:36]} h5 {[%emt 0:06:24]} 47. Re6+ {[%emt 0:00:37]} Kd8 {[%emt 0:02:36]} 48. Re3 {[%emt 0:01:12]} Rg1 {[%emt 0:02:59]} 49. Kh2 {[%emt 0:00:10]} R8g2+ {[%emt 0:00:45]} 50. Kh3 {[%emt 0:01:18]} Rg4 {[%emt 0:06:04]} 51. Kh2 Rg6 {[%emt 0:00:01]} 52. Rxg6 {[%emt 0:00:42]} Rxg6 53. Rg3 {[%emt 0:00:53]} Rxg3 {[%emt 0:00:37]} 54. Kxg3 {[%emt 0:00:53]} c6 55. dxc6 {[%emt 0:00:06]} Kc7 {[%emt 0:00:13]} 56. Kf3 {[%emt 0:00:06]} Kxc6 {[%emt 0:00:21]} 57. Ke3 {[%emt 0:00:16]} Kd7 {[%emt 0:00:17]} 58. Kd2 {[%emt 0:00:05]} Kc6 {[%emt 0:00:13]} 59. Ke3 {[%emt 0:00:09]} Kb7 {[%emt 0:01:00]} 60. Kd2 Kc7 1/2-1/2

[Event "Hungary Olimpic Hopes 2022"]
[Site "Tapolca"]
[Date "2022.06.23"]
[Round "2.10"]
[White "Horvath, Andras"]
[Black "Bod, Marton"]
[Result "0-1"]
[ECO "B83"]
[WhiteElo "1415"]
[BlackElo "1738"]
[Annotator "NA RC"]
[PlyCount "60"]
[EventDate "2022.06.23"]
[EventType "swiss"]
[EventCountry "HUN"]
[SourceTitle "playchess.com"]
[Source "ChessBase"]
[SourceQuality "1"]
[TimeControl "5400+30"]

1. e4 {[%emt 0:00:07]} c5 {[%emt 0:00:08]} 2. Nf3 {[%emt 0:00:05]} e6 {[%emt 0:00:17]} 3. d4 {[%emt 0:00:13]} cxd4 {[%emt 0:00:08]} 4. Nxd4 {[%emt 0:00:07]} Nf6 {[%emt 0:00:10]} 5. Nc3 {[%emt 0:00:43]} d6 {[%emt 0:00:38]} 6. Be2 {[%emt 0:03:13]} b6 {[%emt 0:01:59]} 7. O-O {[%emt 0:02:27]} Bb7 {[%emt 0:01:32]} 8. f3 {[%emt 0:04:50]} a6 {[%emt 0:02:06]} 9. Bg5 Nbd7 {[%emt 0:06:05]} 10. Qd2 {[%emt 0:12:27]} Be7 {[%emt 0:05:02]} 11. Rad1 Qc7 12. Bd3 {[%emt 0:15:42]} Nc5 {[%emt 0:04:37]} 13. Rde1 {[%emt 0:10:40]} h6 14. Be3 {[%emt 0:07:35]} Rd8 {[%emt 0:12:11]} 15. Qf2 {[%emt 0:00:30]} d5 {[%emt 0:17:34]} 16. exd5 {[%emt 0:04:03]} Nxd5 {[%emt 0:00:38]} 17. Nxd5 {[%emt 0:02:22]} Bxd5 {[%emt 0:00:35]} 18. Kh1 {[%emt 0:11:00]} O-O {[%emt 0:04:24]} 19. Qd2 {[%emt 0:01:42]} Nxd3 {[%emt 0:00:52]} 20. cxd3 {[%emt 0:01:27]} Bf6 {[%emt 0:01:22]} 21. Rc1 {[%emt 0:01:17]} Qd6 {[%emt 0:04:01]} 22. Rfe1 {[%emt 0:09:09]} Bxa2 23. Ra1 {[%emt 0:06:41]} Bxd4 {[%emt 0:05:31]} 24. Rxa2 {[%emt 0:00:58]} Bxe3 {[%emt 0:00:28]} 25. Rxe3 {[%emt 0:01:22]} a5 26. Ra1 {[%emt 0:00:43]} Qd4 {[%emt 0:01:48]} 27. Rc1 {[%emt 0:00:45]} Rc8 {[%emt 0:00:48]} 28. Rd1 {[%emt 0:00:17]} Rfd8 {[%emt 0:00:23]} 29. Re4 {[%emt 0:00:18]} Qxd3 {[%emt 0:00:30]} 30. Qe1 {[%emt 0:01:09]} Qxd1 {[%emt 0:00:08]} 0-1

[Event "Hungary Olimpic Hopes 2022"]
[Site "Tapolca"]
[Date "2022.06.23"]
[Round "2.11"]
[White "Horvath, Matyas Sandor"]
[Black "Juhasz, Edmond"]
[Result "0-1"]
[ECO "C44"]
[WhiteElo "1354"]
[BlackElo "1479"]
[Annotator "NA"]
[PlyCount "132"]
[EventDate "2022.06.23"]
[EventType "swiss"]
[EventCountry "HUN"]
[SourceTitle "playchess.com"]
[Source "ChessBase"]
[SourceQuality "1"]
[TimeControl "5400+30"]

1. e4 e5 {[%emt 0:00:15]} 2. Nf3 {[%emt 0:00:09]} Nc6 {[%emt 0:00:24]} 3. c3 {[%emt 0:00:00]} Bc5 {[%emt 0:01:33]} 4. d4 {[%emt 0:00:22]} exd4 {[%emt 0:00:26]} 5. cxd4 {[%emt 0:00:32]} Bb4+ {[%emt 0:00:34]} 6. Bd2 {[%emt 0:00:50]} Bxd2+ {[%emt 0:00:41]} 7. Nbxd2 {[%emt 0:00:25]} d6 {[%emt 0:00:26]} 8. Bb5 {[%emt 0:01:24]} Bd7 {[%emt 0:01:11]} 9. O-O {[%emt 0:02:07]} Nge7 {[%emt 0:01:21]} 10. h3 {[%emt 0:03:41]} O-O {[%emt 0:00:57]} 11. Re1 {[%emt 0:00:57]} Ng6 {[%emt 0:01:10]} 12. a3 {[%emt 0:01:20]} a6 {[%emt 0:00:39]} 13. Bc4 {[%emt 0:02:59]} Qf6 {[%emt 0:03:57]} 14. d5 {[%emt 0:02:13]} Nce5 15. Nxe5 {[%emt 0:00:40]} Nxe5 {[%emt 0:01:33]} 16. Ba2 {[%emt 0:00:21]} Nd3 {[%emt 0:01:41]} 17. Rf1 {[%emt 0:02:14]} Nxb2 {[%emt 0:05:13]} 18. Qc2 {[%emt 0:04:20]} Bb5 {[%emt 0:00:53]} 19. Nc4 {[%emt 0:00:14]} Bxc4 {[%emt 0:00:36]} 20. Bxc4 {[%emt 0:00:17]} Nxc4 {[%emt 0:01:39]} 21. Qxc4 {[%emt 0:00:58]} Qe7 {[%emt 0:00:57]} 22. Rac1 {[%emt 0:01:54]} Rac8 {[%emt 0:01:20]} 23. Rc3 {[%emt 0:00:37]} Rfe8 {[%emt 0:03:02]} 24. f3 {[%emt 0:02:45]} Qd7 {[%emt 0:02:29]} 25. Rfc1 {[%emt 0:02:29]} Re7 {[%emt 0:05:38]} 26. Qb3 Qb5 {[%emt 0:00:10]} 27. Qxb5 {[%emt 0:05:22]} axb5 {[%emt 0:04:47]} 28. Rb1 {[%emt 0:01:39]} c6 {[%emt 0:01:32]} 29. Rxb5 {[%emt 0:01:14]} Rec7 30. dxc6 {[%emt 0:01:00]} bxc6 {[%emt 0:00:55]} 31. Rb6 {[%emt 0:00:59]} f6 {[%emt 0:01:48]} 32. Kf2 {[%emt 0:00:32]} Kf7 {[%emt 0:00:57]} 33. Ke3 {[%emt 0:00:39]} Ke7 {[%emt 0:04:31]} 34. f4 {[%emt 0:03:56]} Kd7 {[%emt 0:01:58]} 35. Rcb3 {[%emt 0:00:50]} Re8 {[%emt 0:02:08]} 36. Kd3 {[%emt 0:04:42]} Ra8 {[%emt 0:08:17]} 37. Rc3 {[%emt 0:01:48]} d5 {[%emt 0:00:09]} 38. exd5 {[%emt 0:00:25]} cxd5 {[%emt 0:00:13]} 39. Rxc7+ {[%emt 0:02:19]} Kxc7 {[%emt 0:01:59]} 40. Rb3 {[%emt 0:02:02]} Ra4 {[%emt 0:03:11]} 41. f5 {[%emt 0:00:53]} Rf4 {[%emt 0:02:01]} 42. g4 {[%emt 0:03:40]} Ra4 {[%emt 0:02:37]} 43. Ke3 {[%emt 0:02:11]} Kc6 {[%emt 0:08:53]} 44. Rd3 {[%emt 0:01:01]} d4+ {[%emt 0:00:20]} 45. Rxd4 {[%emt 0:04:03]} Rxa3+ 46. Rd3 {[%emt 0:00:15]} Rxd3+ {[%emt 0:01:12]} 47. Kxd3 {[%emt 0:01:22]} Kd5 {[%emt 0:07:43]} 48. h4 {[%emt 0:06:15]} Kc5 {[%emt 0:02:57]} 49. h5 {[%emt 0:00:23]} Kd5 {[%emt 0:00:42]} 50. Ke3 {[%emt 0:00:38]} Ke5 {[%emt 0:02:25]} 51. Kf3 {[%emt 0:00:36]} Kd4 {[%emt 0:02:16]} 52. Kf4 {[%emt 0:00:29]} h6 {[%emt 0:00:24]} 53. Kf3 {[%emt 0:01:09]} Kd3 {[%emt 0:00:45]} 54. Kf4 Ke2 {[%emt 0:00:08]} 55. Ke4 {[%emt 0:00:44]} Kf2 {[%emt 0:00:39]} 56. Kd5 {[%emt 0:00:42]} Kg3 {[%emt 0:00:20]} 57. Ke6 {[%emt 0:00:30]} Kxg4 {[%emt 0:00:30]} 58. Kf7 Kxf5 {[%emt 0:00:09]} 59. Kxg7 {[%emt 0:01:11]} Kg5 {[%emt 0:00:08]} 60. Kf7 f5 {[%emt 0:00:08]} 61. Kg7 {[%emt 0:01:18]} f4 {[%emt 0:00:09]} 62. Kh7 {[%emt 0:00:18]} f3 63. Kg8 {[%emt 0:00:07]} f2 {[%emt 0:00:48]} 64. Kg7 {[%emt 0:03:05]} f1=Q 65. Kg8 Qf6 {[%emt 0:01:04]} 66. Kh7 {[%emt 0:00:58]} Qe7+ 0-1

[Event "Hungary Olimpic Hopes 2022"]
[Site "Tapolca"]
[Date "2022.06.23"]
[Round "2.12"]
[White "Kerekes, Laszlo Fulop"]
[Black "Bardics, Marko"]
[Result "1-0"]
[ECO "A56"]
[WhiteElo "1455"]
[BlackElo "1417"]
[Annotator "NA RC"]
[PlyCount "41"]
[EventDate "2022.06.23"]
[EventType "swiss"]
[EventCountry "HUN"]
[SourceTitle "playchess.com"]
[Source "ChessBase"]
[SourceQuality "1"]
[TimeControl "5400+30"]

1. d4 {[%emt 0:00:05]} Nf6 {[%emt 0:00:18]} 2. c4 {[%emt 0:00:45]} c5 {[%emt 0:00:53]} 3. Nf3 {[%emt 0:00:59]} b6 {[%emt 0:02:31]} 4. Nc3 {[%emt 0:00:54]} Bb7 {[%emt 0:01:48]} 5. d5 {[%emt 0:01:55]} e6 {[%emt 0:03:14]} 6. d6 {[%emt 0:00:56]} g6 {[%emt 0:02:21]} 7. Nb5 {[%emt 0:00:43]} Na6 {[%emt 0:00:10]} 8. Bf4 {[%emt 0:00:49]} Bg7 {[%emt 0:00:23]} 9. g3 {[%emt 0:02:53]} O-O {[%emt 0:03:54]} 10. Bg2 Be4 {[%emt 0:02:45]} 11. Nc7 {[%emt 0:04:26]} Nb4 {[%emt 0:00:00]} 12. O-O {[%emt 0:00:43]} Ne8 {[%emt 0:02:33]} 13. Nxa8 {[%emt 0:00:35]} Qxa8 {[%emt 0:00:23]} 14. a3 {[%emt 0:22:08]} Na6 {[%emt 0:03:14]} 15. b4 Bxa1 {[%emt 0:00:24]} 16. Qxa1 {[%emt 0:00:43]} cxb4 17. Bh6 {[%emt 0:00:38]} f6 {[%emt 0:02:04]} 18. Bxf8 {[%emt 0:00:11]} Kxf8 {[%emt 0:00:06]} 19. axb4 {[%emt 0:01:21]} Nxb4 {[%emt 0:03:53]} 20. Qa4 {[%emt 0:01:06]} Nc6 {[%emt 0:00:56]} 21. c5 1-0

[Event "Hungary Olimpic Hopes 2022"]
[Site "Tapolca"]
[Date "2022.06.23"]
[Round "2.13"]
[White "Balogh, Gerda"]
[Black "Biro, Beata"]
[Result "0-1"]
[ECO "C02"]
[WhiteElo "1531"]
[BlackElo "1480"]
[Annotator "NA RC"]
[PlyCount "90"]
[EventDate "2022.06.23"]
[EventType "swiss"]
[EventCountry "HUN"]
[SourceTitle "playchess.com"]
[Source "ChessBase"]
[SourceQuality "1"]
[TimeControl "5400+30"]

1. e4 {[%emt 0:00:03]} e6 {[%emt 0:00:06]} 2. d4 {[%emt 0:00:04]} d5 {[%emt 0:00:12]} 3. e5 {[%emt 0:00:12]} c5 {[%emt 0:00:13]} 4. c3 {[%emt 0:00:15]} Nc6 {[%emt 0:00:38]} 5. Nf3 {[%emt 0:00:29]} Nge7 {[%emt 0:00:45]} 6. Be2 {[%emt 0:05:47]} cxd4 {[%emt 0:01:26]} 7. cxd4 {[%emt 0:00:14]} Nf5 {[%emt 0:00:52]} 8. O-O {[%emt 0:01:00]} Qb6 {[%emt 0:01:22]} 9. Be3 {[%emt 0:09:40]} Qxb2 {[%emt 0:01:23]} 10. Nbd2 {[%emt 0:02:34]} Ncxd4 {[%emt 0:01:48]} 11. Nxd4 {[%emt 0:02:46]} Nxd4 {[%emt 0:00:13]} 12. Bd3 {[%emt 0:00:23]} Nc6 {[%emt 0:02:24]} 13. f4 Bd7 {[%emt 0:03:36]} 14. Qf3 {[%emt 0:13:04]} Qc3 {[%emt 0:00:40]} 15. Be2 {[%emt 0:03:52]} d4 {[%emt 0:00:56]} 16. Nc4 dxe3 {[%emt 0:02:05]} 17. Nxe3 {[%emt 0:04:52]} Bc5 18. Kf2 O-O {[%emt 0:04:08]} 19. Rac1 {[%emt 0:05:46]} Bxe3+ {[%emt 0:01:04]} 20. Qxe3 {[%emt 0:00:40]} Qxe3+ {[%emt 0:00:23]} 21. Kxe3 {[%emt 0:00:10]} f6 {[%emt 0:01:20]} 22. Rb1 {[%emt 0:00:55]} b6 {[%emt 0:01:37]} 23. Rfc1 {[%emt 0:00:15]} fxe5 {[%emt 0:00:36]} 24. fxe5 {[%emt 0:00:16]} Nxe5 {[%emt 0:00:33]} 25. Rc7 {[%emt 0:00:29]} Rfc8 {[%emt 0:01:19]} 26. Rxc8+ {[%emt 0:00:23]} Rxc8 {[%emt 0:00:08]} 27. Ba6 {[%emt 0:00:21]} Rc2 {[%emt 0:01:35]} 28. Ke4 {[%emt 0:00:33]} Ng4 {[%emt 0:00:58]} 29. h3 {[%emt 0:00:14]} Nf6+ 30. Kd3 {[%emt 0:00:12]} Rxa2 {[%emt 0:00:45]} 31. Bc4 {[%emt 0:00:10]} Rxg2 {[%emt 0:00:20]} 32. Ke3 {[%emt 0:00:34]} Rg3+ {[%emt 0:00:42]} 33. Kf4 {[%emt 0:00:13]} Rxh3 {[%emt 0:00:21]} 34. Ke5 {[%emt 0:00:33]} Kf7 {[%emt 0:00:48]} 35. Kf4 {[%emt 0:00:17]} Rh4+ {[%emt 0:00:11]} 36. Ke5 {[%emt 0:00:12]} Rxc4 {[%emt 0:00:05]} 37. Kd6 {[%emt 0:00:25]} h5 {[%emt 0:00:30]} 38. Rh1 {[%emt 0:00:07]} a5 {[%emt 0:00:14]} 39. Rh2 {[%emt 0:00:19]} h4 {[%emt 0:00:08]} 40. Ra2 {[%emt 0:00:08]} a4 {[%emt 0:00:16]} 41. Rh2 {[%emt 0:00:17]} a3 {[%emt 0:00:10]} 42. Ra2 {[%emt 0:00:08]} Ra4 {[%emt 0:00:09]} 43. Ra1 {[%emt 0:00:18]} a2 {[%emt 0:00:07]} 44. Ke5 {[%emt 0:00:13]} Ke7 {[%emt 0:00:11]} 45. Rb1 {[%emt 0:00:29]} Re4# {[%emt 0:00:12]} 0-1

[Event "Hungary Olimpic Hopes 2022"]
[Site "Tapolca"]
[Date "2022.06.23"]
[Round "2.14"]
[White "Molnar, Dalma Reka"]
[Black "Torok, Rita"]
[Result "1-0"]
[ECO "C47"]
[WhiteElo "1554"]
[BlackElo "1359"]
[Annotator "NA RC"]
[PlyCount "73"]
[EventDate "2022.06.23"]
[EventType "swiss"]
[EventCountry "HUN"]
[SourceTitle "playchess.com"]
[Source "ChessBase"]
[SourceQuality "1"]
[TimeControl "5400+30"]

1. e4 {[%emt 0:00:14]} e5 {[%emt 0:00:31]} 2. Nf3 {[%emt 0:00:14]} Nc6 {[%emt 0:00:20]} 3. Nc3 {[%emt 0:00:11]} Nf6 {[%emt 0:00:10]} 4. a3 {[%emt 0:00:13]} a6 {[%emt 0:00:36]} 5. d4 {[%emt 0:01:53]} d6 {[%emt 0:02:52]} 6. dxe5 {[%emt 0:01:53]} dxe5 {[%emt 0:00:43]} 7. Qxd8+ {[%emt 0:00:29]} Kxd8 {[%emt 0:00:09]} 8. Bc4 {[%emt 0:01:02]} Be6 {[%emt 0:01:07]} 9. Bxe6 {[%emt 0:02:04]} fxe6 10. Be3 {[%emt 0:05:12]} Ke7 {[%emt 0:02:03]} 11. O-O-O {[%emt 0:04:52]} h6 {[%emt 0:02:35]} 12. h3 {[%emt 0:03:47]} Kf7 {[%emt 0:02:37]} 13. Rd2 {[%emt 0:03:12]} Bd6 {[%emt 0:01:12]} 14. Rhd1 {[%emt 0:01:57]} Rad8 {[%emt 0:02:19]} 15. b4 {[%emt 0:05:47]} b5 {[%emt 0:07:00]} 16. Bc5 {[%emt 0:08:52]} Bxc5 {[%emt 0:01:18]} 17. Rxd8 {[%emt 0:01:14]} Rxd8 {[%emt 0:01:17]} 18. Rxd8 {[%emt 0:01:15]} Nxd8 {[%emt 0:00:21]} 19. Nxe5+ {[%emt 0:01:02]} Ke8 {[%emt 0:01:30]} 20. bxc5 {[%emt 0:02:30]} Nd7 {[%emt 0:03:30]} 21. Nd3 {[%emt 0:04:01]} c6 {[%emt 0:07:39]} 22. e5 {[%emt 0:01:47]} a5 {[%emt 0:03:30]} 23. f4 {[%emt 0:02:06]} b4 {[%emt 0:03:05]} 24. axb4 {[%emt 0:01:11]} axb4 {[%emt 0:01:45]} 25. Ne4 {[%emt 0:03:05]} Nb7 {[%emt 0:01:29]} 26. Nd6+ {[%emt 0:04:15]} Nxd6 {[%emt 0:00:32]} 27. cxd6 {[%emt 0:00:22]} c5 {[%emt 0:01:15]} 28. Kb2 {[%emt 0:00:37]} Kd8 {[%emt 0:00:38]} 29. Kb3 {[%emt 0:00:11]} Kc8 {[%emt 0:01:35]} 30. Kc4 {[%emt 0:01:13]} g5 {[%emt 0:01:37]} 31. Nxc5 {[%emt 0:02:13]} Nb6+ {[%emt 0:00:40]} 32. Kd4 {[%emt 0:00:36]} gxf4 {[%emt 0:00:45]} 33. Nxe6 {[%emt 0:00:16]} Kd7 {[%emt 0:01:19]} 34. Nxf4 {[%emt 0:00:19]} Na4 {[%emt 0:01:49]} 35. Nd3 {[%emt 0:00:43]} Nc3 {[%emt 0:03:17]} 36. Nxb4 {[%emt 0:00:38]} Ne2+ {[%emt 0:00:43]} 37. Ke3 {[%emt 0:00:05]} 1-0

[Event "Hungary Olimpic Hopes 2022"]
[Site "Tapolca"]
[Date "2022.06.23"]
[Round "2.17"]
[White "Hegedus, Zsombor"]
[Black "Hangay, Oliver"]
[Result "1/2-1/2"]
[ECO "C54"]
[WhiteElo "1320"]
[BlackElo "1627"]
[Annotator "NA RC"]
[PlyCount "40"]
[EventDate "2022.06.23"]
[EventType "swiss"]
[EventCountry "HUN"]
[SourceTitle "playchess.com"]
[Source "ChessBase"]
[SourceQuality "1"]
[TimeControl "5400+30"]

1. e4 {[%emt 0:30:03]} e5 {[%emt 0:30:09]} 2. Nf3 {[%emt 0:00:14]} Nc6 {[%emt 0:00:10]} 3. Bc4 {[%emt 0:00:39]} Bc5 {[%emt 0:00:08]} 4. c3 {[%emt 0:00:47]} Nf6 {[%emt 0:00:24]} 5. d4 {[%emt 0:01:08]} exd4 {[%emt 0:00:11]} 6. cxd4 {[%emt 0:01:04]} Bb4+ {[%emt 0:00:09]} 7. Bd2 {[%emt 0:00:25]} Bxd2+ {[%emt 0:00:28]} 8. Nbxd2 {[%emt 0:00:08]} d5 {[%emt 0:00:34]} 9. exd5 {[%emt 0:00:28]} Nxd5 {[%emt 0:00:09]} 10. Qb3 {[%emt 0:00:42]} Be6 {[%emt 0:17:14]} 11. O-O {[%emt 0:12:10]} Rb8 {[%emt 0:03:05]} 12. Rfe1 {[%emt 0:14:34]} O-O {[%emt 0:06:45]} 13. a3 {[%emt 0:03:45]} a6 {[%emt 0:05:43]} 14. Qd3 {[%emt 0:06:00]} Qd7 {[%emt 0:01:10]} 15. Ne5 {[%emt 0:00:53]} Nxe5 {[%emt 0:03:52]} 16. dxe5 {[%emt 0:01:11]} Nb6 {[%emt 0:00:14]} 17. Qxd7 {[%emt 0:03:01]} Bxd7 {[%emt 0:02:50]} 18. Rac1 {[%emt 0:02:31]} Rfe8 {[%emt 0:02:57]} 19. f4 {[%emt 0:02:50]} Rbd8 {[%emt 0:07:10]} 20. Nf3 h6 1/2-1/2